Cogmind - Beta 14 @@@ ROGUE MODE // 2024.09.18 @ 21:11:46 Player: THN-L0C Result: Self-destructed Performance ------------- Evolutions (0) 0 Regions Visited (4) 800 Robots Destroyed (22) 110 Value Destroyed (551) 551 Prototype IDs (23) 460 Alien Tech Used (0) 0 Bonus (300) 300 TOTAL SCORE: 2221 Bonus ------- Aligned with FarCom 300 Cogmind --------- Core Integrity 31/250 Matter 244/300 Energy 250/250 System Corruption 0% Temperature Cool (0) Movement Treading (240) Ox1 Location -9/Mines Parts ------- > --- POWER (1) -------- Ion Engine > --- PROPULSION (2) --- Light Treads > --- UTILITY (2) ------ Large Storage Unit > --- WEAPON (2) ------- Grenade Launcher > --- INVENTORY (15) --- Light Treads Light Treads Flying Fortress v7 Huge Storage Unit Improved Terrain Scanner Weapon Shielding Light Armor Plating Grenade Launcher Grenade Launcher Hammer Peak State ------------ > --- POWER ------------ Ion Engine > --- PROPULSION ------- Light Treads Light Treads > --- UTILITY ---------- Large Storage Unit Seismic Detector > --- WEAPON ----------- Assault Rifle Assault Rifle > --- INVENTORY -------- Light Treads Light Treads Flying Fortress v7 Huge Storage Unit Improved Terrain Scanner Weapon Shielding Light Armor Plating Grenade Launcher Grenade Launcher Grenade Launcher Hammer [Rating: 11] Favorites ----------- Power Ion Engine Engine Ion Engine Propulsion Light Treads Treads Light Treads Utility Seismic Detector Device Seismic Detector Storage Large Storage Unit Protection Light Armor Plating Weapon Assault Rifle Ballistic Gun Assault Rifle Launcher Grenade Launcher Build | -11 -10 -10 -10 -9 ------- Run | Yrd Mat Min Exi Min Slots Evolved . | . . . . . Power . | . . . . . Propulsion . | . . . . . Utility . | . . . . . Weapon . | . . . . . Parts Attached 18 | 7 8 2 . 1 Power 1 | 1 . . . . Engine 1 | 1 . . . . Core . | . . . . . Reactor . | . . . . . Propulsion 4 | 2 2 . . . Treads 4 | 2 2 . . . Leg . | . . . . . Wheel . | . . . . . Hover . | . . . . . Flight . | . . . . . Utility 7 | 2 4 1 . . Device 3 | 1 1 1 . . Storage 2 | 1 1 . . . Processor . | . . . . . Hackware . | . . . . . Protection 2 | . 2 . . . Artifact . | . . . . . Weapon 6 | 2 2 1 . 1 Energy Gun . | . . . . . Energy Cannon . | . . . . . Ballistic Gun 4 | 2 1 1 . . Ballistic Cannon . | . . . . . Launcher 2 | . 1 . . 1 Special Weapon . | . . . . . Impact Weapon . | . . . . . Slashing Weapon . | . . . . . Piercing Weapon . | . . . . . Special Melee Weapon . | . . . . . Unidentified Prototypes . | . . . . . Parts Lost 5 | . . 1 . 4 Power . | . . . . . Propulsion 1 | . . . . 1 Utility 1 | . . . . 1 Weapon 3 | . . 1 . 2 Highest Loss Streak 4 | . . 1 . 4 To Critical Strikes . | . . . . . Average Slot Usage (%) 99 | . 100 100 100 97 Engine 14 | . 14 14 14 14 Treads 27 | . 28 28 28 25 Device 10 | . 9 11 14 14 Storage 14 | . 14 14 14 14 Protection 3 | . 4 2 . . Ballistic Gun 24 | . 22 28 28 22 Launcher 3 | . 5 . . 5 Peak Build Rating 11 | 7 8 8 11 11 Average Rating 8 | 5 7 7 9 10 On Entrance 6 | . 7 8 8 11 Naked Turns . | . . . . . Heaviest Build 32 | 15 32 32 30 30 Greatest Support 40 | 40 40 40 40 40 Greatest Overweight (x) . | . . . . . Average Overweight (x) . | . . . . . Largest Inventory Capacity 15 | 8 15 15 15 15 Average Capacity 12 | 7 11 15 15 15 Most Carried 14 | 1 11 11 14 14 Average Carried 8 | . 7 10 11 13 Final Capacity 15 | 8 15 15 15 15 Final Carried 14 | 1 11 10 14 13 Class Distribution -------------------- 100% | Mutant Dominant Class ---------------- Mutant | -10/Materials Mutant | -10/Mines Mutant | -10/Exiles Mutant | -9/Mines Resources | -11 -10 -10 -10 -9 ----------- Run | Yrd Mat Min Exi Min Matter Collected 693 | 360 256 77 . . Remotely . | . . . . . Salvage Created 725 | 169 458 98 . . Parts 46 | 13 31 2 . . Haulers Intercepted . | . . . . . Recyclers Shooed 1 | 1 . . . . Parts Field Recycled . | . . . . . Retrieved Matter . | . . . . . Parts Self-Destructed . | . . . . . Prevented . | . . . . . Kills | -11 -10 -10 -10 -9 ------- Run | Yrd Mat Min Exi Min Combat Hostiles Destroyed 14 | . 12 2 . . Guns 8 | . 6 2 . . AOE 6 | . 6 . . . Classes Destroyed 6 | 2 4 . . . Builder 1 | . 1 . . . Tunneler 4 | 4 . . . . Recycler 2 | 1 1 . . . Watcher 1 | . 1 . . . Swarmer 2 | . 2 . . . Grunt 12 | . 10 2 . . Best Kill Streak 5 | 5 4 2 . . Combat Bots Only 4 | . 4 2 . . Max Kills in Single Turn 2 | 1 2 1 . . Gunslinging . | . . . . . Exploded 2 | . 2 . . . Melee . | . . . . . Uniques/NPCs Destroyed . | . . . . . Combat | -11 -10 -10 -10 -9 -------- Run | Yrd Mat Min Exi Min Hostile Shots Fired 75 | . 37 24 . 14 Missed 12 | . 8 4 . . Damage Taken 1211 | . 409 275 . 527 Core 219 | . 65 36 . 118 Absorbed by Shields . | . . . . . Core Remaining (%) 100 | 100 . . . . Volleys Fired 56 | 15 27 9 . 5 Largest 2 | 2 2 2 . 2 Hottest 50 | 40 50 40 . 50 Shots Fired 101 | 30 47 17 . 7 Gun 88 | 30 39 17 . 2 Cannon . | . . . . . Launcher 13 | . 8 . . 5 Special . | . . . . . Kinetic 88 | 30 39 17 . 2 Thermal . | . . . . . Explosive 13 | . 8 . . 5 Electromagnetic . | . . . . . Robot Hit Streak 10 | 8 5 5 . 10 Robot Miss Streak 3 | 2 3 1 . 1 Penetration Max . | . . . . . Secondary Targets 1 | . . 1 . . Max Gunslinging Chain 1 | . . 1 . . Shots Hit Robots 64 | 19 25 14 . 6 Core Hits 45 | 6 28 5 . 6 Critical Kills . | . . . . . Critical Parts Destroyed . | . . . . . Critical Strikes . | . . . . . Melee Attacks . | . . . . . Impact . | . . . . . Slashing . | . . . . . Piercing . | . . . . . Sneak Attacks . | . . . . . Combat Hostiles . | . . . . . Follow-up Attacks . | . . . . . Damage Inflicted 1244 | 251 739 177 . 77 Guns 750 | 251 295 177 . 27 Cannons . | . . . . . Explosions 491 | . 441 . . 50 Melee . | . . . . . Ramming 3 | . 3 . . . Kinetic 750 | 251 295 177 . 27 Thermal . | . . . . . Explosive 491 | . 441 . . 50 Electromagnetic . | . . . . . Impact . | . . . . . Slashing . | . . . . . Piercing . | . . . . . Highest Corruption . | . . . . . Average Corruption . | . . . . . Corruption Purged . | . . . . . Corruption Blocked . | . . . . . Overload Shots . | . . . . . Overflow Damage . | . . . . . Projectiles . | . . . . . Explosions . | . . . . . Melee . | . . . . . Knockbacks . | . . . . . Impact . | . . . . . Kinetic . | . . . . . Secondary . | . . . . . Self-Inflicted Damage 33 | . 33 . . . Shots 2 | . 2 . . . Rammed . | . . . . . Targets Rammed 1 | . 1 . . . Kicked . | . . . . . Crushed 1 | . 1 . . . Highest Temperature 46 | . 15 46 . . Average Temperature 16 | . 4 27 . . Received Heat Transfer 342 | . 192 150 . . Siege Activations . | . . . . . Robots Corrupted . | . . . . . Combat Hostiles . | . . . . . Parts Fried . | . . . . . Impact Corruptions . | . . . . . Robots Melted . | . . . . . Combat Hostiles . | . . . . . Parts Melted . | . . . . . Heat Transferred . | . . . . . Parts Sabotaged . | . . . . . Parts Stolen . | . . . . . Parts Stripped . | . . . . . Power Chain Reactions . | . . . . . Alert | -11 -10 -10 -10 -9 ------- Run | Yrd Mat Min Exi Min Peak Influence 225 | 25 225 57 . 12 Initial 17 | . 16 17 . . Average 67 | 11 86 51 . 1 Maximum Alert Level 1 | . 1 . . . Low Security (%) 94 | 100 91 100 . 100 Level 1 5 | . 8 . . . Level 2 . | . . . . . Level 3 . | . . . . . Level 4 . | . . . . . Level 5 . | . . . . . High Security . | . . . . . Max Security . | . . . . . Squads Dispatched 2 | . 2 . . . Investigation 1 | . 1 . . . Extermination . | . . . . . Reinforcement 1 | . 1 . . . Assault . | . . . . . Garrison . | . . . . . Intercept . | . . . . . Searches Triggered . | . . . . . Construction Impeded . | . . . . . Haulers Reinforced . | . . . . . Active Scanning Responses . | . . . . . Cargo Convoy Interrupts . | . . . . . Stealth | -11 -10 -10 -10 -9 --------- Run | Yrd Mat Min Exi Min Distress Signals 3 | . 3 . . . Communications Jammed . | . . . . . Distress Signals . | . . . . . Times Spotted 23 | . 16 2 . 5 Peak Tracking Total 5 | . 5 2 . 3 Tactical Retreats 1 | . 1 . . . Traps | -11 -10 -10 -10 -9 ------- Run | Yrd Mat Min Exi Min Traps Triggered 2 | . 2 . . . Indirectly . | . . . . . Trap Hack Attempts . | . . . . . Triggered . | . . . . . Disarmed . | . . . . . Reprogrammed . | . . . . . Reused . | . . . . . Traps Extracted . | . . . . . Installed . | . . . . . Triggered . | . . . . . Machines | -11 -10 -10 -10 -9 ---------- Run | Yrd Mat Min Exi Min Machines Disabled 3 | . 3 . . . Max in Single Turn 2 | . 2 . . . Machines Repaired . | . . . . . Machines Dismantled . | . . . . . Machines Sabotaged . | . . . . . Overloaded Fab Kills . | . . . . . Hacking | -11 -10 -10 -10 -9 --------- Run | Yrd Mat Min Exi Min Machines Accessed 6 | . 5 . 1 . Terminals 5 | . 5 . . . Fabricators . | . . . . . Repair Stations . | . . . . . Recycling Units . | . . . . . Scanalyzers . | . . . . . Garrison Access . | . . . . . Total Hacks 16 | . 15 . 1 . Successful 6 | . 5 . 1 . Failed 10 | . 10 . . . Catastrophic 1 | . 1 . . . Database Lockouts . | . . . . . Manual 16 | . 15 . 1 . Terminals 15 | . 15 . . . Fabricators . | . . . . . Repair Stations . | . . . . . Recycling Units . | . . . . . Scanalyzers . | . . . . . Garrison Access . | . . . . . Terminal Hacks 1 | . . . 1 . Derelict Proto ID Bank 1 | . . . 1 . Fabricator Hacks . | . . . . . Repair Station Hacks . | . . . . . Recycling Unit Hacks . | . . . . . Scanalyzer . | . . . . . Garrison Access Hacks . | . . . . . Unauthorized Hacks 5 | . 5 . . . Terminals 5 | . 5 . . . Skim 5 | . 5 . . . Fabricators . | . . . . . Repair Stations . | . . . . . Recycling Units . | . . . . . Scanalyzers . | . . . . . Garrison Access . | . . . . . Data Cores Recovered . | . . . . . Used . | . . . . . Hacking Detections 5 | . 5 . . . Full Trace Events . | . . . . . Feedback Events . | . . . . . Feedback Blocked . | . . . . . Robot Schematics Acquired . | . . . . . Robots Built . | . . . . . Authchips . | . . . . . Time . | . . . . . Total Robot Build Rating . | . . . . . Part Schematics Acquired . | . . . . . Parts Built . | . . . . . Authchips . | . . . . . Time . | . . . . . Total Part Build Rating . | . . . . . Parts Repaired . | . . . . . Time . | . . . . . Parts Recycled . | . . . . . Recycled Matter . | . . . . . Retrieved Matter . | . . . . . Retrieved Components . | . . . . . Parts Scanalyzed . | . . . . . Part Schematics Acquired . | . . . . . Parts Damaged . | . . . . . Bothacking | -11 -10 -10 -10 -9 ------------ Run | Yrd Mat Min Exi Min Used RIF Installer . | . . . . . Robots Hacked . | . . . . . Non-combat . | . . . . . Combat . | . . . . . Robot Hacks Applied . | . . . . . Relay Couplers Released . | . . . . . Fabnet Peak Effective % . | . . . . . Robots Rewired . | . . . . . Allies Hacked . | . . . . . Hacks Repelled . | . . . . . Allies | -11 -10 -10 -10 -9 -------- Run | Yrd Mat Min Exi Min Total Allies 1 | . . 1 . . Largest Group 1 | . . 1 . . Highest-Rated Group 31 | . . 31 . . Highest-Rated Ally 31 | . . 31 . . Total Orders . | . . . . . Ally Attacks . | . . . . . Total Damage . | . . . . . Kills . | . . . . . Allies Corrupted . | . . . . . Allies Melted . | . . . . . Intel | -11 -10 -10 -10 -9 ------- Run | Yrd Mat Min Exi Min Robot Analysis Total . | . . . . . Derelict Logs Recovered . | . . . . . Drone Launches . | . . . . . Drone Recoveries . | . . . . . Exploration | -11 -10 -10 -10 -9 ------------- Run | Yrd Mat Min Exi Min Turns Passed 1870 | 162 968 354 336 50 Spaces Moved 936 | 67 444 192 210 23 Core 1 | 1 . . . . Treads 935 | 66 444 192 210 23 Legs . | . . . . . Wheels . | . . . . . Hover . | . . . . . Flight . | . . . . . Fastest Speed 50 | 50 160 160 160 160 Average Speed 159 | 158 160 160 160 160 Slowest Speed 160 | 160 160 160 160 160 Overloaded Moves . | . . . . . Propulsion Burnouts . | . . . . . Robots Hopped . | . . . . . Cave-ins Triggered . | . . . . . Exploration Rate (%) 38 | 5 84 33 61 8 Regions Visited 4 Branch Regions 3 Pre-discovered Areas 1 | . 1 . . . Known Exits Taken . | . . . . . Unknown Exits Taken 4 | 1 1 1 1 . Scrap Searched . | . . . . . Spaces Dug 5 | . 5 . . . Terrain Destroyed 61 | . 27 . . 34 Melee . | . . . . . Projectile . | . . . . . AOE 61 | . 27 . . 34 Terrain Rammed . | . . . . . Walls Destroyed . | . . . . . Machines Disabled . | . . . . . Actions | -11 -10 -10 -10 -9 --------- Run | Yrd Mat Min Exi Min Total 1202 | 90 652 221 210 29 Wait 182 | 1 162 19 . . Move 932 | 66 443 191 209 23 Hop . | . . . . . Pick Up 11 | 1 9 . 1 . Fast Attach 7 | 7 . . . . Attach 2 | . . 1 . 1 Detach . | . . . . . Swap 9 | . 8 1 . . Drop 2 | . 2 . . . Fire 56 | 15 27 9 . 5 Melee . | . . . . . Ram . | . . . . . Kick . | . . . . . Crush 1 | . 1 . . . Escape Stasis . | . . . . . Rewire . | . . . . . Trap . | . . . . . Miscellaneous . | . . . . . Route ------- -11/Scrapyard -10/Materials (discovered 5 exits: *Mat x3 / [*Min x2]) -10/Mines (discovered 3 exits: Mat x2 / *Exi) -10/Exiles -9/Mines (discovered 2 exits: Mat x2) History --------- Turn | Location | Event 25 | -11/Scrapyard | Discovered new exit (range 16) 163 | -11/Scrapyard | Entered Materials 301 | -10/Materials | Build established: Mutant 311 | -10/Materials | Discovered new exit (range 3) 312 | -10/Materials | Discovered new exit (range 13) 420 | -10/Materials | Discovered new exit (range 14) 572 | -10/Materials | Discovered new exit (range 16) 861 | -10/Materials | Identified exit to Materials 917 | -10/Materials | Learned 4 Recycling zone layouts 927 | -10/Materials | Learned Storage trap positions 929 | -10/Materials | Learned location of Subcaves (-10) 930 | -10/Materials | Learned Storage emergency access door positions 1131 | -10/Materials | Entered Mines 1203 | -10/Mines | Received a Mining Laser from a helpful Derelict 1374 | -10/Mines | Deemed a non-threat by the Exiles lab entrance 1376 | -10/Mines | Discovered new exit (range 5) 1485 | -10/Mines | Entered Exiles 1524 | -10/Exiles | Met 8R-AWN 1553 | -10/Exiles | Met EX-HEX 1594 | -10/Exiles | Met EX-BIN 1613 | -10/Exiles | Aligned with FarCom system 1615 | -10/Exiles | Given EX-Vault access code 1660 | -10/Exiles | Opened EX-Vault 1669 | -10/Exiles | Found Flying Fortress v7 1701 | -10/Exiles | Warned to stay clear of 0b10 Research branches 1726 | -10/Exiles | Exiles lab attacked by MAIN.C 1808 | -10/Exiles | Discovered new exit (range 10) 1821 | -10/Exiles | Left Exiles lab with Flying Fortress v7 1821 | -10/Exiles | Entered Mines 1822 | -9/Mines | Assembled infested the area 1822 | -9/Mines | Identified exit to Materials 1827 | -9/Mines | Assisted by a Guerilla fighting off Assembled 1861 | -9/Mines | Core integrity fell below 50% 1871 | -9/Mines | Core integrity fell below 20% 1871 | -9/Mines | Self-destructed Last Messages --------------- coming from, and they're closing on this area, come on!" 01830_ K-01 Serf collects debris. 01838_ 5L-KAT: "Oh no, it's like what happened to the Exiles when they were wandering homeless, only there's no Warlord to save us!" 01844_ K-01 Serf destroyed. 01846_ V0-B3P(h): "I'll hold them off! Go on ahead or try to find another way!" 01846_ 5L-KAT suffers critical hit (Destroy). 01846_ 5L-KAT destroyed. 01849_ Penetrated by HV Slug. 01851_ G-34 Mercenary destroyed. 01855_ C-30 ARC bursts open, deploying its payload. 01855_ D-53 Grenadier unfolds itself. 01858_ L-31 Rogue destroyed. 01858_ Assault Rifle destroyed. 01858_ V0-B3P(h) destroyed. 01864_ Lgt. Treads destroyed. 01870_ Assault Rifle destroyed. 01870_ Seismic Detector destroyed. 01871_ The unstable cave ceiling collapses. Map ----- +----------------------------------------------------+ | | | | | | | | | ?????????????????????????????????????????????? | | ?????????????????????????????????????????????? | | ?????????????????????????????????????????????? | | ?????????????????????????????????????????????? | | ?????????????????????????????????????????????? | | ?????